bitfinex-derivatives/quotes_ETHF0:USTF0_20251009
["timestamp","ask_amount","ask_price","bid_price","bid_amount"]
[1759999566730,0.41443,4342.4,4342.3,1.8112]
[1759999566926,1.8796,4342.9,4342.2,0.232]
[1759999567229,2.96407073,4342.4,4342.3,1.8112]
[1759999567531,1.8796,4342.3,4342.2,0.00267206]
[1759999567731,0.1842,4342.9,4342.3,1.8112]
[1759999567932,0.41439,4342.8,4342.2,0.64911206]
[1759999568130,0.41443,4342.4,4342.3,1.8112]
[1759999569328,1.8796,4342.3,4342.2,0.23467206]
[1759999569522,1.8796,4342.3,4342.2,2.04587206]
[1759999569726,0.41443,4342.4,4342.3,1.8112]
[1759999569937,1.8796,4342.3,4342.2,0.23467206]
[1759999570234,4.82022103,4342.3,4342.2,0.23467206]
[1759999570633,4.82022103,4342.3,4342.2,2.04587206]
[1759999570835,2.94062103,4342.3,4342.2,2.04587206]
[1759999571630,2.94062103,4342.3,4342.2,1.81387206]
[1759999571837,2.94062103,4342.3,4341.1,1.8112]
[1759999571838,4.20873103,4342.3,4341.1,1.8112]
[1759999572037,0.41454,4341.3,4341.2,0.232]
[1759999572238,2.29412,4341.5,4341.3,1.8112]
[1759999572831,2.29412,4341.5,4341.3,1.81322495]
[1759999572832,0.41453,4341.4,4341.3,1.81322495]
[1759999573037,1.8796,4342.2,4341.5,0.41451]
[1759999573237,1.8796,4342.2,4341.5,1.15001]
[1759999573541,0.4145,4341.7,4341.6,2.0432]
[1759999573726,2.93043401,4342.0,4341.7,1.8112]
[1759999574332,2.6545,4343.0,4341.7,1.03624]
[1759999574638,4.83968477,4342.9,4342.6,1.8112]
[1759999574833,0.41441,4342.7,4342.6,1.8112]
[1759999575033,3.26125173,4343.1,4342.3,0.232]
[1759999575331,3.02925173,4342.8,4342.6,0.41441]
[1759999575639,0.4144,4342.7,4342.6,1.8112]
[1759999576330,0.41439,4342.9,4342.6,2.2256]
[1759999576535,0.41439,4342.9,4342.5,0.7355]
[1759999576536,0.41439,4342.9,4342.8,1.8112]
[1759999576732,0.0022214,4343.2,4343.1,1.8112]
[1759999577038,0.0022214,4343.2,4343.1,2.0432]
[1759999577634,0.0022214,4343.2,4343.1,7.0432]
[1759999578233,0.41441,4342.6,4342.5,43.3467]
[1759999578537,2.29401,4342.6,4342.5,1.8112]
[1759999578734,0.0022214,4343.2,4342.5,0.7355]
[1759999578935,0.41437,4343.0,4342.7,0.4144]
[1759999579137,0.0022214,4343.2,4343.1,1.8112]
[1759999579441,0.0022214,4343.2,4343.1,2.0432]
[1759999580542,0.0022214,4343.2,4343.1,2.45756]
[1759999582140,0.0022214,4343.2,4343.1,7.45756]
[1759999582635,0.1841,4343.8,4343.7,0.41431]
[1759999582833,1.8695,4345.4,4344.5,0.7689]
[1759999583042,1.8695,4344.3,4343.7,0.4143]
[1759999583236,2.28379,4343.9,4343.8,0.193]
[1759999583643,2.28594662,4343.9,4343.8,0.19495206]
[1759999583845,2.28594662,4343.9,4343.8,2.10765206]
[1759999585643,0.41644662,4343.9,4343.8,2.10765206]
[1759999586039,0.00215662,4343.9,4343.8,2.10765206]
[1759999586240,0.00215662,4343.9,4343.8,7.10765206]
[1759999586843,0.00215662,4343.9,4343.8,47.90765206]
[1759999587834,0.00215662,4343.9,4343.8,42.71465206]
[1759999588037,0.00215662,4343.9,4343.8,42.94665206]
[1759999588237,0.00215662,4343.9,4343.8,42.71465206]
[1759999588538,0.00215662,4343.9,4343.8,42.94665206]
[1759999589141,1.83615662,4343.9,4343.8,0.00195206]
[1759999590644,1.83615662,4343.9,4343.8,0.23395206]
[1759999590844,1.83615662,4343.9,4343.8,0.00195206]
[1759999591045,1.83615662,4343.9,4343.8,0.23395206]
[1759999591448,1.83615662,4343.9,4343.8,2.01895206]
[1759999591745,0.00215662,4343.9,4343.8,2.01895206]
[1759999591947,1.83615662,4343.9,4343.8,2.01895206]
[1759999592448,0.00215662,4343.9,4343.8,2.01895206]
[1759999593544,9.86265716,4343.9,4343.8,0.00195206]
[1759999594240,1.03587,4343.3,4342.8,1.785]
[1759999594451,0.4144,4342.8,4342.5,0.7744]
[1759999594745,0.4144,4342.8,4342.5,1.18882]
[1759999594746,0.41439,4342.8,4342.5,1.18882]
[1759999594944,0.41439,4342.8,4342.5,0.7744]
[1759999595141,0.41439,4342.8,4342.7,0.41439]
[1759999595343,2.94150328,4343.2,4343.0,0.7744]
[1759999595344,0.41437,4343.1,4343.0,0.7744]
[1759999595942,0.7663,4345.5,4343.7,0.4143]
[1759999595943,0.41426,4344.2,4343.7,0.4143]
[1759999596144,1.834,4345.1,4344.4,0.41423]
[1759999596340,1.03532,4345.6,4344.5,0.7744]
[1759999596536,0.41418,4345.1,4345.0,0.7744]
[1759999596744,0.7663,4346.0,4345.3,2.19915]
[1759999596745,0.41414,4345.5,4345.3,2.19915]
[1759999596939,1.834,4346.2,4345.6,1.785]
[1759999597142,1.834,4346.2,4345.5,0.7744]
[1759999597143,0.41409,4346.0,4345.7,0.41411]
[1759999597345,1.83580822,4346.2,4345.5,0.7744]
[1759999597346,0.00180822,4346.2,4346.1,2.19908]
[1759999597543,0.00180822,4346.2,4346.1,2.20124935]
[1759999598344,1.834,4347.4,4346.6,1.785]
[1759999598748,2.24803,4346.6,4346.5,0.232]
[1759999598954,0.41406,4346.3,4346.2,1.785]
[1759999599446,0.41635445,4346.3,4346.2,1.785]
[1759999600450,1.834,4346.2,4346.1,0.00216935]
[1759999600957,6.834,4346.2,4346.1,0.00216935]
[1759999601647,9.87330609,4346.2,4346.1,0.00216935]
[1759999602450,4.87330609,4346.2,4346.1,0.00216935]
[1759999602652,5.10530609,4346.2,4346.1,0.00216935]
[1759999603662,3.03930609,4346.2,4346.1,1.78716935]
[1759999603955,0.41635445,4346.3,4346.2,1.785]
[1759999604152,2.24645445,4346.3,4346.2,1.785]
[1759999604349,2.24645445,4346.3,4346.1,0.00216935]
[1759999604553,1.8301,4346.2,4346.1,0.00216935]
[1759999604953,0.00229445,4346.3,4346.1,0.00216935]
[1759999604954,0.41635445,4346.3,4346.1,1.86216935]
[1759999605155,0.41635445,4346.3,4346.2,1.86]
[1759999607456,0.00229445,4346.3,4346.2,1.86]
[1759999609056,0.00229445,4346.3,4346.2,42.66]
[1759999609350,0.00229445,4346.3,4346.1,0.00216935]
[1759999609351,2.24417,4346.2,4346.1,0.00216935]
[1759999609953,0.00229445,4346.3,4346.1,0.00216935]
[1759999610259,0.41407,4346.2,4346.1,1.86216935]
[1759999612153,2.24417,4346.2,4346.1,1.86216935]
[1759999612462,0.41407,4346.2,4346.1,1.86216935]
[1759999612858,2.24417,4346.2,4346.1,0.00216935]
[1759999613953,5.21002634,4346.2,4346.1,0.00216935]
[1759999614757,0.41407,4346.2,4346.1,1.86216935]
[1759999616065,0.41407,4346.2,4346.1,2.27624935]
[1759999616562,0.00229445,4346.3,4346.1,2.27624935]
[1759999616762,0.00229445,4346.3,4346.2,2.27407]
[1759999617860,2.24645445,4346.3,4346.2,2.27407]
[1759999618361,0.41635445,4346.3,4346.2,2.27407]
[1759999618657,0.41635445,4346.3,4346.2,1.86]
[1759999618961,0.41635445,4346.3,4346.1,0.00216935]
[1759999618962,2.29347,4346.2,4346.1,0.00216935]
[1759999619358,2.29347,4346.2,4346.1,1.80106935]
[1759999619558,0.41407,4346.2,4346.1,1.80106935]
[1759999619758,0.41407,4346.2,4346.1,2.21514935]
[1759999620171,0.41407,4346.2,4346.1,1.80106935]
[1759999621260,0.00229445,4346.3,4346.2,2.21297]
[1759999621459,0.41635445,4346.3,4346.2,1.7989]
[1759999621864,0.41635445,4346.3,4346.2,2.21297]
[1759999622260,0.00229445,4346.3,4346.2,2.21297]
[1759999622663,0.41635445,4346.3,4346.2,2.21297]
[1759999623369,0.41635445,4346.3,4346.2,1.7989]
[1759999623666,0.41635445,4346.3,4346.2,2.21297]
[1759999624371,0.41635445,4346.3,4346.2,2.0309]
[1759999624769,2.29575445,4346.3,4346.2,1.7989]
[1759999624970,2.29575445,4346.3,4346.2,2.0309]
[1759999625358,0.41635445,4346.3,4346.2,2.0309]
[1759999625764,0.41635445,4346.3,4346.2,2.44497]
[1759999625965,0.00229445,4346.3,4346.2,2.44497]
[1759999626368,0.184,4346.9,4346.8,2.21291]
[1759999626568,0.184,4346.9,4346.8,2.44491]
[1759999626764,0.41397,4347.2,4347.1,1.7989]
[1759999627063,2.29337,4347.2,4347.1,2.0309]
[1759999627268,0.00210635,4347.2,4346.8,0.232]
[1759999627471,0.7472,4347.0,4346.1,1.80106935]
[1759999627660,1.8794,4346.9,4346.3,0.41406]
[1759999627969,0.41402,4346.8,4346.5,2.5233]
[1759999628176,0.00210635,4347.2,4346.6,1.7989]
[1759999628565,4.88864248,4347.1,4346.6,0.41402]
[1759999628771,0.41401,4346.8,4346.6,2.21292]
[1759999628973,0.41401,4346.8,4346.6,1.7989]
[1759999629268,0.00210635,4347.2,4347.1,1.7989]
[1759999630568,2.29338,4347.1,4347.0,2.0309]
[1759999630769,0.00210635,4347.2,4347.0,2.0309]
[1759999630770,0.00210635,4347.2,4347.0,0.64599]
[1759999630971,0.00210635,4347.2,4347.1,1.7989]
[1759999631971,1.88150635,4347.2,4347.1,1.7989]
[1759999632161,0.00210635,4347.2,4347.1,1.7989]
[1759999633874,0.00210635,4347.2,4347.1,4.1996]
[1759999636868,1e-08,4347.2,4347.1,4.61358]
[1759999638067,0.022,4347.9,4347.0,0.9564]
[1759999638068,0.022,4347.9,4347.8,1.2161]
[1759999638273,0.022,4347.9,4347.8,4.84551]
[1759999638775,0.41383,4348.7,4348.6,2.4007]
[1759999638970,0.41383,4348.7,4348.6,4.1996]
[1759999639175,0.41383,4348.7,4348.6,4.61344]
[1759999639176,0.00253898,4348.7,4348.6,4.61344]
[1759999639379,0.41636898,4348.7,4348.6,4.61344]
[1759999639671,0.00253898,4348.7,4348.6,4.1996]
[1759999639878,0.41636898,4348.7,4348.6,4.61344]
[1759999640173,4.75276898,4348.7,4348.6,4.1996]
[1759999640471,4.33893898,4348.7,4348.6,4.61344]
[1759999640875,1.27563898,4348.7,4348.6,4.61344]
[1759999641070,0.00253898,4348.7,4348.6,4.61344]
[1759999642082,1.8794,4349.5,4348.6,4.61344]
[1759999642083,0.41376,4349.5,4349.4,4.1996]
[1759999642277,5.68681,4350.0,4349.9,4.1996]
[1759999642872,5.2731,4350.0,4349.9,4.20237005]
[1759999643173,7.15539535,4350.0,4349.9,4.20237005]
[1759999643480,4.00289535,4350.0,4349.9,4.20237005]
[1759999644574,4.41660535,4350.0,4349.9,4.20237005]
[1759999644774,5.68970535,4350.0,4349.9,4.43437005]
[1759999645176,7.56910535,4350.0,4349.9,4.43437005]
[1759999645370,5.68970535,4350.0,4349.9,4.43437005]
[1759999646277,7.56910535,4350.0,4349.9,4.43437005]
[1759999646786,5.68970535,4350.0,4349.9,4.43437005]
[1759999646973,4.00289535,4350.0,4349.9,4.43437005]
[1759999651082,1.7996,4351.4,4350.9,0.41362]
[1759999651279,2.84263,4350.9,4350.8,2.4444]
[1759999651485,4.64223,4350.9,4350.8,3.1086]
[1759999652079,0.41619982,4350.9,4350.8,4.3207]
[1759999652374,0.00256982,4350.9,4350.8,4.3207]
[1759999653174,4.23116982,4350.9,4350.8,4.3207]
[1759999653375,1.80216982,4350.9,4350.6,0.231]
[1759999653575,0.00256982,4350.9,4350.8,4.3207]
[1759999653772,0.00256982,4350.9,4350.8,4.5517]
[1759999655477,0.00256982,4350.9,4350.8,4.3207]
[1759999655682,0.00256982,4350.9,4350.8,4.5517]
[1759999656590,0.1838,4351.3,4351.2,4.73429]
[1759999656879,0.1838,4351.3,4351.2,4.5517]
[1759999657286,0.41357,4351.4,4351.2,4.5517]
[1759999657582,0.41357,4351.4,4351.3,4.5517]
[1759999657583,0.41561478,4351.4,4351.3,4.5517]
[1759999657885,0.00204478,4351.4,4351.3,4.5517]
[1759999659483,0.00204478,4351.4,4351.3,4.96528]
[1759999659983,0.00204478,4351.4,4351.3,4.73428]
[1759999660289,0.00204478,4351.4,4351.3,4.96528]
[1759999660485,1.8216,4352.9,4352.5,1.2323]
[1759999660784,0.41355,4351.6,4351.5,3.2008]
[1759999660979,0.41355,4351.6,4351.5,3.4318]
[1759999661176,1.66574,4351.8,4351.7,2.4444]
[1759999661381,0.41354,4351.8,4351.7,4.5517]
[1759999661588,0.41645987,4351.8,4351.7,4.5517]
[1759999661886,3.46825987,4351.8,4351.7,4.3207]
[1759999662074,3.46825987,4351.8,4351.7,4.5517]
[1759999662279,1.66865987,4351.8,4351.7,4.5517]
[1759999662688,0.41645987,4351.8,4351.7,4.5517]
[1759999663185,0.00291987,4351.8,4351.7,4.5517]
[1759999665786,0.00291987,4351.8,4351.7,4.3207]
[1759999665986,0.00291987,4351.8,4351.3,3.0951]
[1759999665987,3.0689,4351.4,4351.3,3.0951]
[1759999666285,3.0689,4351.4,4351.3,3.3261]
[1759999666286,4.67277,4351.4,4351.3,3.3261]
[1759999666480,1.63177,4351.4,4351.3,4.4703]
[1759999666682,1.8507,4351.3,4350.5,0.7063]
[1759999666880,0.41365,4350.6,4350.5,3.1087]
[1759999667083,0.41365,4350.6,4350.5,3.3397]
[1759999667391,0.41365,4350.6,4350.5,5.1766]
[1759999667592,1.63185,4350.6,4350.5,5.1766]
[1759999668287,1.8507,4352.2,4351.1,1.8369]
[1759999668488,0.41351,4352.1,4351.7,4.2393]
[1759999668782,1.22111987,4351.8,4351.7,4.2393]
[1759999668984,3.07181987,4351.8,4351.7,4.4703]
[1759999669388,0.00291987,4351.8,4351.7,4.4703]
[1759999669585,3.07181987,4351.8,4351.7,4.4703]
[1759999669780,6.85361987,4351.8,4351.2,1.8369]
[1759999669985,2.26428,4351.3,4351.2,1.8369]
[1759999670189,2.26428,4351.3,4351.2,2.0679]
[1759999670383,0.41357,4351.5,4351.2,2.0679]
[1759999670585,0.41357,4351.4,4351.2,0.231]
[1759999670792,0.41357,4351.4,4351.3,1.8369]
[1759999671290,0.41356,4351.6,4351.2,0.231]
[1759999671492,0.41357,4351.5,4351.4,1.8369]
[1759999671688,0.41357,4351.5,4351.4,2.0679]
[1759999672582,0.00291987,4351.8,4351.4,0.231]
[1759999672892,0.41354,4351.7,4351.6,1.8369]
[1759999673090,0.41354,4351.7,4351.6,2.0679]
[1759999673288,0.00291987,4351.8,4351.6,0.231]
[1759999673483,0.00291987,4351.8,4351.7,2.25044]
[1759999673690,0.00291987,4351.8,4351.7,4.65284]
[1759999674387,0.41344,4352.8,4352.7,2.9811]
[1759999674592,0.41344,4352.8,4352.7,4.4703]
[1759999674790,0.41343,4353.0,4352.8,2.25034]
[1759999674994,0.41338,4353.5,4352.8,2.25034]
[1759999675294,1.8507,4353.6,4352.8,2.25034]
[1759999675497,0.02389471,4352.9,4352.8,2.25034]
[1759999676294,0.02389471,4352.9,4352.8,1.8369]
[1759999677389,0.02389471,4352.9,4352.8,2.0679]
[1759999679097,1.03325,4354.3,4353.3,1.8471]
[1759999679294,0.41335,4353.8,4353.6,1.8471]
[1759999679494,0.41335,4353.8,4353.7,2.0781]
[1759999680094,0.41620759,4353.8,4353.7,2.08019122]
[1759999680403,0.00285759,4353.8,4353.7,2.08019122]
[1759999680595,9.87943413,4353.8,4352.2,0.41349]
[1759999680899,1.03356,4353.0,4352.7,1.8471]
[1759999681091,0.41345,4352.7,4352.6,1.8471]
[1759999681600,0.41351,4352.1,4352.0,0.7063]
[1759999681894,0.41351,4352.1,4352.0,0.70889616]
[1759999682094,0.41351,4352.1,4352.0,1.84969616]
[1759999682300,2.28771,4352.1,4352.0,0.00259616]
[1759999682495,7.28771,4352.1,4352.0,0.00259616]
[1759999683105,2.28771,4352.1,4352.0,0.00259616]
[1759999683400,2.28771,4352.1,4352.0,1.84969616]
[1759999683998,2.28771,4352.1,4352.0,0.00259616]
[1759999685500,0.41349,4352.3,4352.1,1.8471]
[1759999685700,0.41349,4352.3,4352.2,2.0781]
[1759999685902,2.28769,4352.3,4352.2,2.0781]
[1759999686198,0.41351,4352.1,4352.0,1.84969616]
[1759999686499,0.41351,4352.1,4352.0,2.08069616]
[1759999686701,2.28771,4352.1,4352.0,2.08069616]
[1759999686897,2.28771,4352.1,4352.0,0.00259616]
[1759999687103,2.28771,4352.1,4352.0,0.23359616]
[1759999687300,2.28771,4352.1,4352.0,0.00259616]
[1759999688107,5.29605533,4352.1,4352.0,0.00259616]
[1759999689603,3.42185533,4352.1,4352.0,1.84969616]
[1759999690310,0.41351,4352.1,4352.0,1.84969616]
[1759999691409,0.231,4352.7,4352.0,0.92519616]
[1759999691615,0.231,4352.7,4352.1,1.8471]
[1759999691616,0.4135,4352.3,4352.1,1.8471]
[1759999691917,0.41351,4352.1,4352.0,2.77229616]
[1759999692110,2.96035486,4352.6,4352.0,2.77229616]
[1759999692412,0.4135,4352.2,4352.1,1.8471]
[1759999692608,0.41346,4352.6,4352.5,1.8471]
[1759999692810,0.41346,4352.6,4352.5,2.5387]
[1759999693010,0.41346,4352.7,4352.6,1.8471]
[1759999693211,1.8742,4353.3,4352.8,1.8471]
[1759999693414,0.4134,4353.3,4352.8,2.0781]
[1759999693713,0.41339,4353.3,4352.8,7.0781]
[1759999693914,2.90755,4353.9,4352.6,1.8471]
[1759999694214,2.28765,4352.7,4352.6,2.0781]
[1759999694419,0.41345,4352.7,4352.6,2.0781]
[1759999695006,0.41343,4352.9,4352.6,2.49155]
[1759999695213,0.41344,4352.8,4352.7,1.8471]
[1759999695415,0.41344,4352.8,4351.9,1.64848973]
[1759999695416,0.41351,4352.1,4351.9,0.41352]
[1759999695618,0.4135,4352.2,4352.0,1.10770616]
[1759999695820,0.4135,4352.2,4352.1,0.231]
[1759999696119,0.4135,4352.2,4352.1,2.0781]
[1759999696619,1.8742,4352.7,4352.0,2.54129616]
[1759999696823,0.41349,4352.3,4352.2,1.8471]
[1759999697115,1.8742,4352.9,4352.4,1.8471]
[1759999697314,1.03349,4353.3,4352.6,1.8471]
[1759999697519,1.8742,4353.4,4353.2,0.4134]
[1759999697520,0.41339,4353.4,4353.2,0.4134]
[1759999697714,0.41339,4353.4,4353.3,1.8471]
[1759999698220,5.92696106,4353.4,4352.6,1.8471]
[1759999698417,5.92696106,4353.4,4352.0,2.34268589]
[1759999698418,0.41344,4352.8,4352.7,0.231]
[1759999698617,0.41343,4353.0,4352.7,0.231]
[1759999698817,1.8742,4353.1,4352.7,0.231]
[1759999699018,0.41344,4352.9,4352.8,1.8471]
[1759999699419,0.4135,4352.3,4352.1,1.8471]
[1759999699618,2.2877,4352.3,4352.2,0.231]
[1759999700116,0.41351,4352.1,4352.0,1.84969616]
[1759999702924,2.28771,4352.1,4352.0,0.00259616]
[1759999703526,2.28771,4352.1,4352.0,1.84969616]
[1759999704325,2.28771,4352.1,4352.0,0.00259616]
[1759999704724,0.41351,4352.1,4352.0,2.54129616]
[1759999704925,0.41351,4352.1,4352.0,1.84969616]
[1759999705323,2.28771,4352.1,4352.0,1.84969616]
[1759999706623,2.6207,4352.5,4352.0,0.41610616]
[1759999706823,1.78006,4353.0,4352.3,0.41348]
[1759999706824,1.0336,4352.9,4352.3,0.41348]
[1759999707022,2.1052,4353.0,4352.5,1.10506]
[1759999707222,1.8742,4353.4,4353.0,0.6916]
[1759999707523,0.59711,4353.1,4353.0,2.5387]
[1759999708227,0.59711,4353.1,4353.0,1.8471]
[1759999708418,1.8045,4352.6,4352.2,1.7718]
[1759999708624,0.41348,4352.4,4352.3,2.0028]
[1759999710018,0.41348,4352.4,4352.3,2.41629]
[1759999710428,0.41348,4352.4,4352.3,2.0028]
[1759999710820,2.21798,4352.4,4352.3,1.7718]
[1759999711026,0.41351,4352.1,4352.0,1.77439616]
[1759999711226,0.41351,4352.1,4352.0,2.00539616]
[1759999712120,0.41351,4352.1,4352.0,2.41891616]
[1759999712324,0.41351,4352.1,4352.0,3.12311616]
[1759999712624,1.8045,4352.8,4352.0,0.93779616]
[1759999712826,0.4135,4352.2,4352.1,2.18531]
[1759999713031,0.4135,4352.2,4352.1,1.7718]
[1759999713628,2.21801,4352.1,4352.0,0.00259616]
[1759999713820,2.21801,4352.1,4352.0,2.00539616]
[1759999714029,0.41351,4352.1,4352.0,2.00539616]
[1759999714429,1.03358,4352.9,4352.0,0.93779616]
[1759999714626,2.21792,4353.0,4352.2,1.7718]
[1759999714932,0.41345,4352.7,4352.6,1.7718]
[1759999716330,0.41345,4352.7,4352.6,2.0028]
[1759999716833,0.41345,4352.7,4352.6,2.41626]
[1759999717032,0.41349,4352.3,4352.2,1.64848973]
[1759999717230,2.21801,4352.1,4352.0,0.00259616]
[1759999717428,2.21801,4352.1,4352.0,0.23359616]
[1759999717828,2.21801,4352.1,4352.0,1.77439616]
[1759999718131,2.21801,4352.1,4352.0,0.23359616]
[1759999718628,2.21801,4352.1,4352.0,0.00259616]
[1759999718829,2.21801,4352.1,4352.0,0.23359616]
[1759999719533,0.41357,4351.4,4351.2,1.64848973]
[1759999719721,1.03389,4351.6,4351.0,1.7718]
[1759999719722,1.8045,4351.1,4351.0,1.7718]
[1759999719924,1.8045,4351.1,4351.0,2.0028]
[1759999720125,2.21813,4350.8,4350.7,1.7718]
[1759999720628,1.8045,4350.8,4350.7,1.77399284]
[1759999720834,0.41362,4350.9,4350.8,1.7718]
[1759999721028,0.41363,4350.9,4350.7,0.00219284]
[1759999721232,0.41363,4350.9,4350.8,1.7718]
[1759999724643,1.8045,4351.3,4350.8,1.7629]
[1759999724938,0.41359,4351.2,4351.1,1.7629]
[1759999725132,0.41358,4351.4,4351.2,0.41359]
[1759999725441,0.41355,4351.6,4351.4,0.41357]
[1759999725733,1.03359,4352.9,4351.5,2.6823]
[1759999725931,0.41354,4351.8,4351.7,1.7629]
[1759999726726,0.41353,4351.9,4351.8,0.41353]
[1759999726925,0.41353,4351.9,4351.6,0.231]
[1759999727131,0.41353,4351.9,4351.8,1.7629]
[1759999727939,0.41351,4352.1,4352.0,1.7629]
[1759999728128,0.41351,4352.1,4352.0,2.4513]
[1759999728534,0.4135,4352.2,4352.0,0.6884]
[1759999728741,0.4135,4352.2,4352.1,1.7629]
[1759999729434,0.4135,4352.2,4351.6,3.41138973]
[1759999729435,0.41354,4351.7,4351.6,3.41138973]
[1759999729741,0.41354,4351.8,4351.7,2.17644]
[1759999729940,2.11231,4352.1,4351.9,0.41352]
[1759999730135,1.6988,4352.9,4352.3,0.41348]
[1759999730332,0.41348,4352.4,4352.2,2.17639]
[1759999730640,2.11229,4352.3,4352.2,0.231]
[1759999730936,2.11229,4352.3,4352.2,1.9939]
[1759999730937,1.6988,4352.3,4352.2,1.9939]
[1759999731334,1.6988,4351.9,4351.8,0.41353]
[1759999731538,1.6988,4351.9,4351.8,0.231]
[1759999731733,1.6988,4351.9,4351.8,1.9939]
[1759999732141,2.11232,4352.0,4351.8,0.64453]
[1759999732441,2.11232,4352.0,4351.9,1.7629]
[1759999732634,1.6988,4351.5,4351.4,0.41356]
[1759999732835,1.6988,4351.5,4351.4,2.17646]
[1759999733238,0.41355,4351.7,4351.6,0.41355]
[1759999733535,5.15425243,4351.9,4351.7,1.7629]
[1759999733735,3.04192243,4351.9,4351.8,2.17643]
[1759999733936,1.6988,4352.7,4352.1,1.7629]
[1759999734243,0.41347,4352.5,4352.4,2.17637]
[1759999734436,0.41346,4352.7,4352.5,0.41347]
[1759999734642,0.6935,4353.0,4352.5,0.41347]
[1759999734836,0.6935,4353.0,4352.2,1.9939]
[1759999734837,0.41348,4352.4,4352.3,2.17638]
[1759999735441,0.6935,4353.0,4352.4,0.41347]
[1759999735642,2.73238,4352.9,4352.2,2.40739]
[1759999735842,0.41349,4352.3,4352.2,2.40739]
[1759999736137,1.1611,4352.0,4351.9,1.57882]
[1759999736343,0.41351,4352.1,4352.0,4.47601]
[1759999737140,0.41351,4352.1,4352.0,4.2935]
[1759999737432,1.57459,4352.3,4352.2,0.41349]
[1759999737643,1.57459,4352.3,4352.2,4.2935]
[1759999738037,3.27339,4352.3,4352.2,4.2935]
[1759999738337,1.7755,4352.9,4352.2,2.5306]
[1759999738536,4.44263,4352.9,4352.8,1.1114]
[1759999738740,3.32482,4352.0,4351.9,4.0276]
[1759999739046,1.7755,4351.2,4351.0,1.64848973]
[1759999739339,3.3249,4351.1,4351.0,4.0276]
[1759999739536,2.1891,4351.1,4351.0,1.9475]
[1759999739738,2.18913,4350.8,4350.7,1.65068257]
[1759999740044,2.18913,4350.8,4350.7,1.94969284]
[1759999741035,2.18913,4350.8,4350.7,1.71869284]
[1759999741236,10.20742172,4350.8,4350.7,0.00219284]
[1759999741435,10.20742172,4350.8,4349.2,2.86030002]
[1759999741436,0.7022,4350.0,4349.6,1.64848973]
[1759999741741,0.41372,4349.8,4349.7,1.7165]
[1759999742041,2.18922,4349.8,4349.7,1.7165]
[1759999742437,2.18928,4349.3,4349.1,1.64848973]
[1759999742635,2.18929,4349.1,4349.0,1.9475]
[1759999742840,2.18929,4349.1,4349.0,1.95002685]
[1759999743043,2.18929,4349.1,4349.0,1.71902685]
[1759999743538,2.18929,4349.1,4349.0,0.00252685]
[1759999744337,1.7755,4349.1,4349.0,0.00252685]
[1759999744542,1.7755,4349.1,4349.0,1.71902685]
[1759999744740,1.7755,4349.1,4349.0,0.00252685]
[1759999746436,0.41379,4349.2,4349.1,1.7165]
[1759999746636,0.41378,4349.3,4349.1,0.41379]
[1759999746937,0.41378,4349.3,4349.2,1.7165]
[1759999747138,2.18928,4349.3,4349.2,1.7165]
[1759999747339,2.18928,4349.3,4349.0,0.70812685]
[1759999747340,2.18929,4349.1,4349.0,0.00252685]
[1759999747949,1.7755,4349.1,4349.0,1.71902685]
[1759999748439,0.9332,4349.5,4349.0,0.00252685]
[1759999748440,1.7755,4349.5,4349.0,0.00252685]
[1759999748744,0.41377,4349.3,4349.0,1.71902685]
[1759999748945,0.41378,4349.2,4349.0,0.64732685]
[1759999749138,0.41378,4349.2,4349.1,1.7165]
[1759999749445,0.41374,4349.7,4349.6,1.7165]
[1759999750146,0.00264473,4349.8,4349.7,1.7165]
[1759999752942,1.77814473,4349.8,4349.7,1.9475]
[1759999753842,0.41377,4349.3,4349.1,1.7165]
[1759999754145,4.77684787,4349.8,4349.2,2.13027]
[1759999754342,2.18926,4349.4,4349.3,1.7165]
[1759999756146,1.7755,4349.7,4349.1,0.231]
[1759999756348,1.7755,4349.6,4349.5,2.13025]
[1759999756736,2.18924,4349.6,4349.5,1.7165]
[1759999756940,0.41374,4349.6,4349.5,1.7165]
[1759999757143,2.18924,4349.6,4349.5,1.7165]
[1759999757549,2.18924,4349.6,4349.5,2.13025]
[1759999758245,0.41376,4349.4,4349.3,2.13026]
[1759999758944,1.1358,4349.4,4349.3,4.44137]
[1759999759142,2.9113,4349.4,4349.3,4.44137]
[1759999759453,3.32506,4349.4,4349.3,4.44137]
[1759999759843,4.44296,4349.4,4349.3,2.3111]
[1759999760444,4.44296,4349.4,4349.3,4.0276]
[1759999761240,4.44296,4349.4,4349.3,4.44137]
[1759999761743,4.44296,4349.4,4349.3,1.1114]
[1759999762048,4.44296,4349.4,4349.0,1.11392685]
[1759999762049,4.44299,4349.1,4349.0,1.11392685]
[1759999762350,4.44299,4349.1,4349.0,0.00252685]
[1759999762648,4.44299,4349.1,4349.0,4.03012685]
[1759999762848,3.32504,4349.7,4349.6,4.44134]
[1759999763044,1.54954,4349.7,4349.6,4.44134]
[1759999763650,1.1358,4349.7,4349.6,4.44134]
[1759999763846,1.54953,4349.7,4349.6,4.44134]
[1759999764054,4.44293,4349.7,4349.6,1.1114]
[1759999764248,0.41373,4349.7,4349.6,2.3111]
[1759999764450,1.54953,4349.7,4349.6,4.0276]
[1759999764755,3.32503,4349.7,4349.6,4.0276]
[1759999764945,4.44293,4349.7,4349.6,4.0276]
[1759999765451,3.30716,4349.4,4349.3,1.1114]
[1759999765654,4.44296,4349.4,4349.3,1.3424]
[1759999766757,4.0292,4349.4,4349.3,4.2586]
[1759999767652,4.0292,4349.4,4349.3,2.3111]
[1759999767853,4.0292,4349.1,4349.0,0.00252685]
[1759999768053,4.44299,4349.1,4349.0,0.00252685]
[1759999768454,4.44299,4349.1,4349.0,1.11392685]
[1759999769253,4.44299,4349.1,4349.0,3.93462685]
[1759999769649,4.44299,4349.1,4349.0,1.11392685]
[1759999769854,4.44299,4349.1,4349.0,3.26832685]